[Event "FIDE World Rapid-ch Open 2018"]
[White "Bilguun, Sumiya"]
[Black "Kovalenko, Igor"]
[Site "St. Petersburg"]
[Round "6.83"]
[Annotator "ChessBase"]
[Result "1/2-1/2"]
[Date "2018.12.27"]
[WhiteElo "2497"]
[BlackElo "2657"]
[PlyCount "149"]
[TimeControl "900+10"]

1. c4 {[%emt 0:0:0]} Nf6 {[%emt 0:0:0]} 2. Nc3 {[%emt 0:0:0]} e5 {[%emt 0:0:0]
} 3. e4 {[%emt 0:0:32]} Bc5 {[%emt 0:0:0]} 4. Be2 {[%emt 0:0:0]} d6 {[%emt 0:0:7]} 5. d3 {[%emt 0:0:30]} a6 {[%emt 0:0:10]} 6. h3 {[%emt 0:0:7]
} c6 {[%emt 0:0:9]} 7. Nf3 {[%emt 0:0:8]} b5 {[%emt 0:0:19]} 8. a3 {[%emt 0:0:8]} Nbd7 {[%emt 0:0:16]} 9. 0-0 {[%emt 0:0:6]} 0-0 {[%emt 0:0:6]
} 10. Bd2 {[%emt 0:1:22]} bxc4 {[%emt 0:0:45]} 11. dxc4 {[%emt 0:0:6]
} a5 {[%emt 0:0:38]} 12. Qc2 {[%emt 0:0:24]} Nb6 {[%emt 0:0:0]} 13. b3 {[%emt 0:2:47]} h6 {[%emt 0:0:49]} 14. Nd1 {[%emt 0:1:52]} Re8 {[%emt 0:0:34]
} 15. Be3 {[%emt 0:0:35]} Nbd7 {[%emt 0:0:17]} 16. Bd3 {[%emt 0:3:13]
} Nh5 {[%emt 0:1:1]} 17. Re1 {[%emt 0:0:30]} Qf6 {[%emt 0:0:0]} 18. Bf1 {[%emt 0:0:36]} Nf8 {[%emt 0:0:38]} 19. Qc3 {[%emt 0:1:3]} Nf4 {[%emt 0:2:40]} 20. Bxc5 {[%emt 0:0:54]} dxc5 {[%emt 0:0:1]} 21. Nb2 {[%emt 0:0:11]
} Nd7 {[%emt 0:4:34]} 22. Na4 {[%emt 0:1:39]} Ne6 {[%emt 0:0:0]} 23. b4 {[%emt 0:0:24]} axb4 {[%emt 0:0:10]} 24. axb4 {[%emt 0:0:2]} cxb4 {[%emt 0:0:6]} 25. Qxb4 {[%emt 0:0:2]} Rb8 {[%emt 0:0:43]} 26. Qd6 {[%emt 0:0:39]
} c5 {[%emt 0:1:44]} 27. Nc3 {[%emt 0:0:14]} Nd4 {[%emt 0:0:0]} 28. Qxf6 {[%emt 0:0:3]} Nxf6 {[%emt 0:0:2]} 29. Reb1 {[%emt 0:0:28]} Bb7 {[%emt 0:0:53]} 30. Bd3 {[%emt 0:0:28]} Bc6 {[%emt 0:0:46]} 31. Rxb8 {[%emt 0:0:34]
} Rxb8 {[%emt 0:0:0]} 32. Nxe5 {[%emt 0:0:1]} Rb3 {[%emt 0:0:0]} 33. Nxc6 {[%emt 0:0:2]} Rxc3 {[%emt 0:0:5]} 34. e5 {[%emt 0:0:30]} Rxd3 {[%emt 0:0:4]} 35. Nxd4 {[%emt 0:0:4]} Rxd4 {[%emt 0:0:4]} 36. exf6 {[%emt 0:0:1]} gxf6 {[%emt 0:0:0]} 37. Rc1 {[%emt 0:0:5]} Kg7 {[%emt 0:0:0]} 38. Rc2 {[%emt 0:0:20]} f5 {[%emt 0:0:1]} 39. g3 {[%emt 0:0:8]} f4 {[%emt 0:0:2]} 40. Kg2 {[%emt 0:0:4]} Kg6 {[%emt 0:0:1]} 41. Kf3 {[%emt 0:0:5]
} Kf5 {[%emt 0:0:21]} 42. Rc3 {[%emt 0:0:20]} f6 {[%emt 0:0:0]} 43. gxf4 {[%emt 0:0:19]} Rxf4+ {[%emt 0:0:1]} 44. Kg3 {[%emt 0:0:1]} h5 {[%emt 0:0:12]} 45. f3 {[%emt 0:0:15]} h4+ {[%emt 0:0:25]} 46. Kf2 {[%emt 0:0:1]
} Rd4 {[%emt 0:0:0]} 47. Ke3 {[%emt 0:0:10]} Rd1 {[%emt 0:0:0]} 48. Ra3 {[%emt 0:0:8]} Re1+ {[%emt 0:0:56]} 49. Kd2 {[%emt 0:0:20]} Re5 {[%emt 0:0:7]} 50. Ra6 {[%emt 0:0:8]} Kg5 {[%emt 0:0:4]} 51. f4+ {[%emt 0:0:14]
} Kxf4 {[%emt 0:0:1]} 52. Rxf6+ {[%emt 0:0:1]} Kg3 {[%emt 0:0:0]} 53. Rd6 {[%emt 0:0:2]} Kxh3 {[%emt 0:0:55]} 54. Rd5 {[%emt 0:0:1]} Re4 {[%emt 0:0:23]} 55. Rxc5 {[%emt 0:0:2]} Kg3 {[%emt 0:0:2]} 56. Rg5+ {[%emt 0:0:14]
} Kf4 {[%emt 0:0:2]} 57. Rh5 {[%emt 0:0:12]} Kg4 {[%emt 0:0:0]} 58. Rh8 {[%emt 0:0:3]} Rxc4 {[%emt 0:0:10]} 59. Ke2 {[%emt 0:0:4]} Rf4 {[%emt 0:0:1]} 60. Rg8+ {[%emt 0:0:8]} Kh3 {[%emt 0:0:1]} 61. Rg7 {[%emt 0:0:2]
} Kh2 {[%emt 0:0:1]} 62. Rg8 {[%emt 0:0:1]} h3 {[%emt 0:0:0]} 63. Rg7 {[%emt 0:0:3]} Ra4 {[%emt 0:0:2]} 64. Kf2 {[%emt 0:0:13]} Ra2+ {[%emt 0:0:1]} 65. Kf1 {[%emt 0:0:4]} Rg2 {[%emt 0:0:6]} 66. Rf7 {[%emt 0:0:41]
} Rg4 {[%emt 0:0:9]} 67. Rf3 {[%emt 0:0:11]} Rg1+ {[%emt 0:0:0]} 68. Kf2 {[%emt 0:0:4]} Rg5 {[%emt 0:0:2]} 69. Kf1 {[%emt 0:0:7]} Rc5 {[%emt 0:0:8]} 70. Kf2 {[%emt 0:0:5]} Rb5 {[%emt 0:0:7]} 71. Kf1 {[%emt 0:0:6]
} Rb1+ {[%emt 0:0:7]} 72. Kf2 {[%emt 0:0:1]} Rc1 {[%emt 0:0:0]} 73. Re3 {[%emt 0:0:13]} Rc6 {[%emt 0:0:44]} 74. Rf3 {[%emt 0:0:2]} Rb6 {[%emt 0:0:0]} 75. Kf1 {[%emt 0:0:3]} 1/2-1/2

[Event "FIDE World Rapid-ch Open 2018"]
[White "Zablotsky, Sergei"]
[Black "Lobanov, Sergei"]
[Site "St. Petersburg"]
[Round "6.84"]
[Annotator "ChessBase"]
[Result "0-1"]
[Date "2018.12.27"]
[WhiteElo "2511"]
[BlackElo "2526"]
[PlyCount "84"]
[TimeControl "900+10"]

1. e4 {[%emt 0:0:0]} c6 {[%emt 0:0:0]} 2. Nc3 {[%emt 0:0:0]} d5 {[%emt 0:0:0]} 3. Qe2 {[%emt 0:0:1]} d4 {[%emt 0:0:19]} 4. Nd1 {[%emt 0:0:3]} e5 {[%emt 0:0:1]} 5. g3 {[%emt 0:0:24]} c5 {[%emt 0:0:5]} 6. Bg2 {[%emt 0:0:0]} Nc6 {[%emt 0:0:2]} 7. d3 {[%emt 0:0:3]} Bd6 {[%emt 0:0:32]} 8. f4 {[%emt 0:0:9]
} exf4 {[%emt 0:1:3]} 9. gxf4 {[%emt 0:0:5]} Qh4+ {[%emt 0:0:0]} 10. Qf2 {[%emt 0:0:2]} Qxf2+ {[%emt 0:0:2]} 11. Nxf2 {[%emt 0:0:0]} f5 {[%emt 0:0:52]} 12. Ne2 {[%emt 0:3:44]} Nge7 {[%emt 0:0:29]} 13. Bd2 {[%emt 0:2:4]} Be6 {[%emt 0:1:45]} 14. a3 {[%emt 0:0:7]} a5 {[%emt 0:0:0]} 15. 0-0 {[%emt 0:0:59]} Kd7 {[%emt 0:3:12]} 16. c3 {[%emt 0:0:45]} a4 {[%emt 0:1:37]
} 17. Rac1 {[%emt 0:2:2]} g6 {[%emt 0:1:52]} 18. e5 {[%emt 0:0:0]} Bc7 {[%emt 0:1:59]} 19. cxd4 {[%emt 0:0:20]} cxd4 {[%emt 0:0:1]} 20. h4 {[%emt 0:0:6]} Bb6 {[%emt 0:0:34]} 21. Nh3 {[%emt 0:0:8]} h6 {[%emt 0:0:25]
} 22. Kf2 {[%emt 0:0:9]} Nd5 {[%emt 0:1:18]} 23. Rg1 {[%emt 0:0:0]} Rhg8 {[%emt 0:0:1]} 24. Bf3 {[%emt 0:0:38]} Na5 {[%emt 0:0:22]} 25. Bxa5 {[%emt 0:0:52]} Rxa5 {[%emt 0:0:3]} 26. h5 {[%emt 0:0:2]} gxh5 {[%emt 0:0:53]
} 27. Rxg8 {[%emt 0:0:11]} Bxg8 {[%emt 0:0:1]} 28. Rg1 {[%emt 0:0:22]
} Ne7 {[%emt 0:0:47]} 29. Bxb7 {[%emt 0:1:48]} Rb5 {[%emt 0:0:0]} 30. Rg7 {[%emt 0:0:17]} Rxb2 {[%emt 0:0:16]} 31. Bc6+ {[%emt 0:0:1]} Kxc6 {[%emt 0:0:23]} 32. Rxe7 {[%emt 0:0:1]} Bb3 {[%emt 0:0:9]} 33. Rh7 {[%emt 0:0:22]
} Bc5 {[%emt 0:0:18]} 34. Rxh6+ {[%emt 0:0:3]} Kd5 {[%emt 0:0:0]} 35. Rxh5 {[%emt 0:0:13]} Bc2 {[%emt 0:0:17]} 36. Nhg1 {[%emt 0:0:11]
} Bxd3 {[%emt 0:0:2]} 37. Kf3 {[%emt 0:0:22]} Kc4 {[%emt 0:0:14]} 38. e6 {[%emt 0:0:7]
} Be4+ {[%emt 0:0:2]} 39. Kg3 {[%emt 0:0:6]} d3 {[%emt 0:0:0]} 40. Rh7 {[%emt 0:0:16]} dxe2 {[%emt 0:0:9]} 41. Nxe2 {[%emt 0:0:7]} Rxe2 {[%emt 0:0:1]} 42. Rc7 {[%emt 0:0:2]} Bd5 {[%emt 0:0:3]} 0-1

[Event "FIDE World Rapid-ch Open 2018"]
[White "Hirneise, Jens"]
[Black "Mikhalevski, Victor"]
[Site "St. Petersburg"]
[Round "6.85"]
[Annotator "ChessBase"]
[Result "1-0"]
[Date "2018.12.27"]
[WhiteElo "2371"]
[BlackElo "2579"]
[PlyCount "225"]
[TimeControl "900+10"]

1. e4 {[%emt 0:0:0]} e5 {[%emt 0:0:0]} 2. Nf3 {[%emt 0:0:0]} Nc6 {[%emt 0:0:0]
} 3. Bb5 {[%emt 0:0:0]} a6 {[%emt 0:0:0]} 4. Ba4 {[%emt 0:0:0]} Nge7 {[%emt 0:0:0]} 5. Nc3 {[%emt 0:0:4]} g6 {[%emt 0:0:16]} 6. d4 {[%emt 0:0:30]
} exd4 {[%emt 0:0:49]} 7. Nd5 {[%emt 0:0:8]} Nxd5 {[%emt 0:0:0]} 8. exd5 {[%emt 0:0:15]} Qe7+ {[%emt 0:0:4]} 9. Kf1 {[%emt 0:1:4]} b5 {[%emt 0:8:5]} 10. dxc6 {[%emt 0:0:37]} bxa4 {[%emt 0:0:1]} 11. Qxd4 {[%emt 0:0:28]
} f6 {[%emt 0:0:1]} 12. Bg5 {[%emt 0:0:45]} Kf7 {[%emt 0:0:0]} 13. Re1 {[%emt 0:0:42]} Qd6 {[%emt 0:0:11]} 14. Bxf6 {[%emt 0:6:43]} Qxf6 {[%emt 0:0:45]} 15. Qd5+ {[%emt 0:0:2]} Kg7 {[%emt 0:0:3]} 16. cxd7 {[%emt 0:0:7]
} Bxd7 {[%emt 0:1:17]} 17. Qxd7+ {[%emt 0:0:22]} Qf7 {[%emt 0:0:0]} 18. Qd4+ {[%emt 0:1:39]} Qf6 {[%emt 0:0:16]} 19. Qd7+ {[%emt 0:0:44]
} Qf7 {[%emt 0:0:2]} 20. Qxf7+ {[%emt 0:0:6]} Kxf7 {[%emt 0:0:2]} 21. Ne5+ {[%emt 0:0:6]} Kg7 {[%emt 0:0:8]} 22. Nd3 {[%emt 0:0:15]} a3 {[%emt 0:0:33]
} 23. b3 {[%emt 0:0:40]} a5 {[%emt 0:1:20]} 24. Re4 {[%emt 0:0:0]} a4 {[%emt 0:0:2]} 25. Ke2 {[%emt 0:0:22]} Bd6 {[%emt 0:0:13]} 26. Kd2 {[%emt 0:0:10]} Rhb8 {[%emt 0:0:41]} 27. h4 {[%emt 0:0:15]} Rb5 {[%emt 0:0:40]
} 28. g3 {[%emt 0:0:14]} Rd5 {[%emt 0:0:19]} 29. b4 {[%emt 0:0:0]} Rb8 {[%emt 0:0:13]} 30. Ke2 {[%emt 0:0:36]} Rdb5 {[%emt 0:0:36]} 31. c4 {[%emt 0:0:25]} Rf5 {[%emt 0:0:14]} 32. c5 {[%emt 0:0:4]} Bf8 {[%emt 0:0:0]} 33. Nf4 {[%emt 0:0:11]} Kg8 {[%emt 0:0:31]} 34. Rd1 {[%emt 0:0:5]} Rf7 {[%emt 0:0:14]} 35. Rd3 {[%emt 0:0:12]} c6 {[%emt 0:0:32]} 36. Rxa3 {[%emt 0:0:3]
} Ra7 {[%emt 0:0:1]} 37. Rd3 {[%emt 0:0:9]} a3 {[%emt 0:0:0]} 38. Rdd4 {[%emt 0:0:15]} Bg7 {[%emt 0:0:9]} 39. Rd6 {[%emt 0:0:7]} Bc3 {[%emt 0:0:23]} 40. Nd3 {[%emt 0:0:5]} Rc7 {[%emt 0:0:11]} 41. Rc4 {[%emt 0:0:9]
} Re8+ {[%emt 0:0:18]} 42. Kf3 {[%emt 0:0:3]} Bb2 {[%emt 0:0:0]} 43. Rc2 {[%emt 0:0:10]} Bg7 {[%emt 0:0:13]} 44. Kg2 {[%emt 0:0:30]} Bf8 {[%emt 0:0:6]} 45. Rd4 {[%emt 0:0:12]} Rce7 {[%emt 0:0:4]} 46. Rdc4 {[%emt 0:0:14]
} Rd7 {[%emt 0:0:5]} 47. R4c3 {[%emt 0:0:11]} Ra8 {[%emt 0:0:0]} 48. Ne5 {[%emt 0:0:4]} Rc7 {[%emt 0:0:1]} 49. Rb3 {[%emt 0:0:3]} Bg7 {[%emt 0:0:3]} 50. Nc4 {[%emt 0:0:2]} Rca7 {[%emt 0:0:4]} 51. Na5 {[%emt 0:0:16]
} Ra6 {[%emt 0:0:5]} 52. Rxa3 {[%emt 0:0:4]} Be5 {[%emt 0:0:0]} 53. Re3 {[%emt 0:0:27]} Bc7 {[%emt 0:0:3]} 54. Re6 {[%emt 0:0:23]} Bxa5 {[%emt 0:0:3]} 55. bxa5 {[%emt 0:0:1]} R8a7 {[%emt 0:0:7]} 56. Rb2 {[%emt 0:0:16]
} Kf7 {[%emt 0:0:8]} 57. Rd6 {[%emt 0:0:3]} Re7 {[%emt 0:0:0]} 58. Rb6 {[%emt 0:0:17]} Rxa5 {[%emt 0:0:2]} 59. Rdxc6 {[%emt 0:0:10]} Rxa2 {[%emt 0:0:2]} 60. Rf6+ {[%emt 0:0:11]} Kg7 {[%emt 0:0:1]} 61. Rf4 {[%emt 0:0:9]
} Rc2 {[%emt 0:0:3]} 62. Rc6 {[%emt 0:0:1]} Ra7 {[%emt 0:0:0]} 63. Rc8 {[%emt 0:0:4]} Rb7 {[%emt 0:0:7]} 64. c6 {[%emt 0:0:11]} Re7 {[%emt 0:0:1]} 65. Rb4 {[%emt 0:0:23]} Kh6 {[%emt 0:0:22]} 66. Rb7 {[%emt 0:0:10]
} Rxc6 {[%emt 0:0:4]} 67. Rxe7 {[%emt 0:0:12]} Rxc8 {[%emt 0:0:0]} 68. g4 {[%emt 0:0:2]} g5 {[%emt 0:1:1]} 69. Re6+ {[%emt 0:0:8]} Kg7 {[%emt 0:0:1]} 70. hxg5 {[%emt 0:0:1]} Rc4 {[%emt 0:0:6]} 71. Kg3 {[%emt 0:0:2]
} Rc3+ {[%emt 0:0:1]} 72. Kf4 {[%emt 0:0:24]} Kf7 {[%emt 0:0:0]} 73. Rf6+ {[%emt 0:0:29]} Kg7 {[%emt 0:0:2]} 74. f3 {[%emt 0:0:8]} Rc5 {[%emt 0:0:6]} 75. Re6 {[%emt 0:0:10]} Ra5 {[%emt 0:0:3]} 76. Re5 {[%emt 0:0:5]
} Ra3 {[%emt 0:0:1]} 77. Ke4 {[%emt 0:0:6]} Kg6 {[%emt 0:0:0]} 78. f4 {[%emt 0:0:9]} Ra6 {[%emt 0:0:9]} 79. Kf3 {[%emt 0:0:10]} Ra3+ {[%emt 0:0:3]} 80. Re3 {[%emt 0:0:1]} Ra6 {[%emt 0:0:5]} 81. Kg3 {[%emt 0:0:1]
} Ra4 {[%emt 0:0:14]} 82. Kf3 {[%emt 0:0:37]} Ra6 83. Rd3 {[%emt 0:0:5]
} Rb6 {[%emt 0:0:6]} 84. Ke4 {[%emt 0:0:5]} Re6+ {[%emt 0:0:0]} 85. Kf3 {[%emt 0:0:15]} Ra6 {[%emt 0:0:1]} 86. Rd5 {[%emt 0:0:4]} Ra3+ {[%emt 0:0:10]} 87. Ke4 {[%emt 0:0:3]} Ra6 {[%emt 0:0:25]} 88. Ke5 {[%emt 0:0:3]
} Ra4 {[%emt 0:0:2]} 89. Rd6+ {[%emt 0:0:2]} Kg7 {[%emt 0:0:0]} 90. Rd4 {[%emt 0:0:23]} Ra5+ {[%emt 0:0:6]} 91. Rd5 {[%emt 0:0:2]} Ra4 {[%emt 0:0:2]} 92. Kf5 {[%emt 0:0:3]} Ra7 {[%emt 0:0:2]} 93. Ke6 {[%emt 0:0:21]
} Ra6+ {[%emt 0:0:1]} 94. Ke5 {[%emt 0:0:3]} Ra4 {[%emt 0:0:0]} 95. f5 {[%emt 0:0:22]} Ra8 {[%emt 0:0:21]} 96. Rd7+ {[%emt 0:0:4]} Kg8 {[%emt 0:0:1]} 97. Ke6 {[%emt 0:0:4]} Re8+ {[%emt 0:0:2]} 98. Re7 {[%emt 0:0:4]
} Ra8 {[%emt 0:0:1]} 99. f6 {[%emt 0:0:39]} Ra6+ {[%emt 0:0:0]} 100. Kf5 {[%emt 0:0:2]} Ra5+ {[%emt 0:0:1]} 101. Re5 {[%emt 0:0:3]} Ra4 {[%emt 0:0:1]} 102. Re8+ {[%emt 0:0:13]} Kf7 {[%emt 0:0:1]} 103. Re7+ {[%emt 0:0:1]} Kg8 {[%emt 0:0:0]} 104. Rg7+ {[%emt 0:0:10]} Kh8 {[%emt 0:0:0]} 105. g6 {[%emt 0:0:36]} Ra5+ {[%emt 0:0:6]} 106. Kf4 {[%emt 0:0:12]
} Ra4+ {[%emt 0:0:31]} 107. Kg5 {[%emt 0:0:9]} Ra5+ {[%emt 0:0:3]} 108. Kh6 {[%emt 0:0:12]} hxg6 {[%emt 0:0:1]} 109. Rb7 {[%emt 0:0:9]} Kg8 {[%emt 0:0:11]
} 110. Kxg6 {[%emt 0:0:2]} Ra8 {[%emt 0:0:1]} 111. Rg7+ {[%emt 0:0:4]
} Kf8 {[%emt 0:0:2]} 112. Rh7 {[%emt 0:0:3]} Kg8 {[%emt 0:0:0]} 113. f7+ {[%emt 0:0:2]} 1-0

[Event "FIDE World Rapid-ch Open 2018"]
[White "Vastrukhin, Oleg"]
[Black "Kabanov, Nikolai"]
[Site "St. Petersburg"]
[Round "6.86"]
[Annotator "ChessBase"]
[Result "1-0"]
[Date "2018.12.27"]
[WhiteElo "2413"]
[BlackElo "2450"]
[PlyCount "77"]
[TimeControl "900+10"]

1. g3 {[%emt 0:0:0]} e5 {[%emt 0:0:14]} 2. Bg2 {[%emt 0:0:0]} Nc6 {[%emt 0:0:14]
} 3. c4 {[%emt 0:0:36]} g6 {[%emt 0:0:13]} 4. Nc3 {[%emt 0:0:0]} Bg7 {[%emt 0:0:3]} 5. e3 {[%emt 0:0:17]} d6 {[%emt 0:0:25]} 6. Nge2 {[%emt 0:0:6]
} Nge7 {[%emt 0:0:20]} 7. d3 {[%emt 0:0:41]} h5 {[%emt 0:0:54]
} 8. a3 {[%emt 0:0:43]} h4 {[%emt 0:0:17]} 9. b3 {[%emt 0:2:30]} Bg4 {[%emt 0:1:46]
} 10. h3 {[%emt 0:0:40]} Be6 {[%emt 0:0:5]} 11. g4 {[%emt 0:0:0]} d5 {[%emt 0:0:12]} 12. Bb2 {[%emt 0:0:8]} f5 {[%emt 0:3:14]} 13. gxf5 {[%emt 0:0:29]} gxf5 {[%emt 0:0:5]} 14. Qc2 {[%emt 0:2:0]} d4 {[%emt 0:2:45]
} 15. exd4 {[%emt 0:0:38]} Nxd4 {[%emt 0:0:11]} 16. Nxd4 {[%emt 0:0:3]
} exd4 {[%emt 0:0:2]} 17. Na4 {[%emt 0:1:1]} c6 {[%emt 0:0:0]} 18. 0-0-0 {[%emt 0:0:44]} Qd6 {[%emt 0:0:32]} 19. Rde1 {[%emt 0:1:1]} Bf7 {[%emt 0:0:15]} 20. b4 {[%emt 0:1:32]} 0-0-0 {[%emt 0:1:12]} 21. Nc5 {[%emt 0:0:1]
} Ng6 {[%emt 0:0:45]} 22. Rhg1 {[%emt 0:0:24]} Rhe8 {[%emt 0:0:0]} 23. Kb1 {[%emt 0:0:58]} Bf6 {[%emt 0:0:55]} 24. Bc1 {[%emt 0:0:12]} Nf4 {[%emt 0:0:49]} 25. Bxf4 {[%emt 0:0:19]} Qxf4 {[%emt 0:0:2]} 26. Qa4 {[%emt 0:2:3]
} Rxe1+ {[%emt 0:1:10]} 27. Rxe1 {[%emt 0:0:1]} Qxf2 {[%emt 0:0:0]} 28. Rc1 {[%emt 0:0:14]} Be7 {[%emt 0:0:21]} 29. Bxc6 {[%emt 0:0:7]} Bxc5 {[%emt 0:0:5]} 30. bxc5 {[%emt 0:0:1]} Qd2 {[%emt 0:0:35]} 31. Bh1 {[%emt 0:1:18]
} Qxd3+ {[%emt 0:0:2]} 32. Ka1 {[%emt 0:0:4]} Be8 {[%emt 0:0:0]} 33. c6 {[%emt 0:0:14]} Qd2 {[%emt 0:0:25]} 34. Rb1 {[%emt 0:0:16]} Qc3+ {[%emt 0:0:6]} 35. Ka2 {[%emt 0:0:1]} b6 {[%emt 0:0:25]} 36. Bd5 {[%emt 0:0:37]
} d3 {[%emt 0:0:15]} 37. Qa6+ {[%emt 0:0:20]} Kc7 {[%emt 0:0:0]} 38. Qb7+ {[%emt 0:0:1]} Kd6 {[%emt 0:0:2]} 39. c7 {[%emt 0:0:4]} 1-0

[Event "FIDE World Rapid-ch Open 2018"]
[White "Makarov, Marat"]
[Black "Fakhrutdinov, Timur"]
[Site "St. Petersburg"]
[Round "6.87"]
[Annotator "ChessBase"]
[Result "0-1"]
[Date "2018.12.27"]
[WhiteElo "2505"]
[BlackElo "2481"]
[PlyCount "182"]
[TimeControl "900+10"]

1. d4 {[%emt 0:1:18]} Nf6 {[%emt 0:0:0]} 2. c4 {[%emt 0:0:11]} e6 {[%emt 0:0:0]} 3. Nc3 {[%emt 0:0:2]} Bb4 {[%emt 0:0:0]} 4. g3 {[%emt 0:0:6]} d5 {[%emt 0:0:6]} 5. Bg2 {[%emt 0:0:2]} 0-0 {[%emt 0:0:8]} 6. Nf3 {[%emt 0:0:0]} dxc4 {[%emt 0:0:7]} 7. 0-0 {[%emt 0:0:7]} c5 {[%emt 0:0:18]} 8. dxc5 {[%emt 0:0:12]} Qc7 {[%emt 0:2:28]} 9. Qa4 {[%emt 0:2:2]} Qxc5 {[%emt 0:1:19]
} 10. Be3 {[%emt 0:1:8]} Qe7 {[%emt 0:1:30]} 11. a3 {[%emt 0:0:0]} Bxc3 {[%emt 0:0:49]} 12. bxc3 {[%emt 0:0:1]} Nd5 {[%emt 0:0:28]} 13. Bd4 {[%emt 0:0:53]} Qc7 {[%emt 0:3:10]} 14. e4 {[%emt 0:3:16]} Bd7 {[%emt 0:1:42]
} 15. Qc2 {[%emt 0:0:2]} Ne7 {[%emt 0:0:7]} 16. Be5 {[%emt 0:0:0]} Qc8 {[%emt 0:1:24]} 17. Bd6 {[%emt 0:0:26]} Re8 {[%emt 0:0:9]} 18. a4 {[%emt 0:2:4]} Bc6 {[%emt 0:0:19]} 19. Ne5 {[%emt 0:0:24]} Nd7 {[%emt 0:0:0]} 20. Nxc4 {[%emt 0:0:6]} Nf6 {[%emt 0:0:22]} 21. Ne5 {[%emt 0:0:51]} Nd7 {[%emt 0:0:16]} 22. Ng4 {[%emt 0:0:53]} b6 {[%emt 0:0:19]} 23. a5 {[%emt 0:0:7]
} b5 {[%emt 0:0:30]} 24. h4 {[%emt 0:0:15]} a6 {[%emt 0:0:27]} 25. h5 {[%emt 0:0:1]} h6 {[%emt 0:0:7]} 26. Qd2 {[%emt 0:0:21]} Qb7 {[%emt 0:0:14]
} 27. Rfe1 {[%emt 0:0:7]} Kh7 {[%emt 0:0:19]} 28. Rad1 {[%emt 0:0:59]
} f5 {[%emt 0:0:11]} 29. Ne5 {[%emt 0:0:29]} Nxe5 {[%emt 0:0:0]} 30. Bxe5 {[%emt 0:0:1]} fxe4 {[%emt 0:0:19]} 31. Qe2 {[%emt 0:1:26]} Nf5 {[%emt 0:0:9]} 32. Qg4 {[%emt 0:0:53]} Qf7 {[%emt 0:0:4]} 33. Bxe4 {[%emt 0:0:6]
} Bxe4 {[%emt 0:0:5]} 34. Qxe4 {[%emt 0:0:8]} Qxh5 {[%emt 0:0:0]} 35. g4 {[%emt 0:0:3]} Qg6 {[%emt 0:0:2]} 36. Kh2 {[%emt 0:0:32]} Nh4 {[%emt 0:0:9]} 37. Kg3 {[%emt 0:0:17]} Qxe4 {[%emt 0:0:8]} 38. Rxe4 {[%emt 0:0:0]
} Ng6 {[%emt 0:0:3]} 39. Bc7 {[%emt 0:0:2]} Rac8 {[%emt 0:0:0]} 40. Bb6 {[%emt 0:0:32]} Rxc3+ {[%emt 0:0:4]} 41. Be3 {[%emt 0:0:1]} Rc6 {[%emt 0:0:15]} 42. Rd7 {[%emt 0:0:1]} Re7 {[%emt 0:0:6]} 43. Red4 {[%emt 0:0:3]
} Rxd7 {[%emt 0:0:34]} 44. Rxd7 {[%emt 0:0:0]} Ne5 {[%emt 0:0:0]} 45. Rb7 {[%emt 0:0:3]} Nc4 {[%emt 0:0:3]} 46. Bb6 {[%emt 0:0:10]} e5 {[%emt 0:0:5]} 47. f3 {[%emt 0:0:0]} Rd6 {[%emt 0:0:25]} 48. Rb8 {[%emt 0:1:2]
} Kg6 {[%emt 0:0:15]} 49. Bc5 {[%emt 0:0:3]} Rc6 {[%emt 0:0:0]} 50. Bb4 {[%emt 0:0:1]} h5 {[%emt 0:0:13]} 51. gxh5+ Kxh5 52. Kf2 {[%emt 0:0:14]
} Kg6 {[%emt 0:0:17]} 53. Ke2 {[%emt 0:0:0]} Kf5 {[%emt 0:0:0]} 54. Rf8+ {[%emt 0:0:5]} Rf6 {[%emt 0:0:2]} 55. Rg8 {[%emt 0:0:4]} Rg6 {[%emt 0:0:28]} 56. Rf8+ {[%emt 0:0:2]} Ke6 {[%emt 0:0:4]} 57. Kd3 {[%emt 0:0:2]
} Rf6 {[%emt 0:0:6]} 58. Re8+ {[%emt 0:0:8]} Kd5 {[%emt 0:0:0]} 59. Rd8+ {[%emt 0:0:3]} Kc6 {[%emt 0:0:5]} 60. Ke2 {[%emt 0:0:2]} g6 {[%emt 0:0:19]} 61. Rc8+ {[%emt 0:0:2]} Kb7 {[%emt 0:0:4]} 62. Rg8 {[%emt 0:0:2]
} Kc6 {[%emt 0:0:24]} 63. Rc8+ {[%emt 0:0:2]} Kd7 {[%emt 0:0:0]} 64. Ra8 {[%emt 0:0:3]} Rc6 {[%emt 0:0:9]} 65. Rg8 {[%emt 0:0:3]} Re6 {[%emt 0:0:9]} 66. Rg7+ {[%emt 0:0:2]} Kc6 {[%emt 0:0:10]} 67. Ra7 {[%emt 0:0:23]
} Kd5 {[%emt 0:0:4]} 68. Rd7+ {[%emt 0:0:9]} Nd6 {[%emt 0:0:0]} 69. Kd3 {[%emt 0:0:7]} Rf6 {[%emt 0:0:9]} 70. Ke3 {[%emt 0:0:2]} Kc6 {[%emt 0:0:22]} 71. Ra7 {[%emt 0:0:1]} Nc4+ {[%emt 0:0:2]} 72. Ke2 {[%emt 0:0:2]
} Kd5 {[%emt 0:0:7]} 73. Rd7+ {[%emt 0:0:1]} Ke6 {[%emt 0:0:0]} 74. Rd8 {[%emt 0:0:13]} Kf5 {[%emt 0:0:11]} 75. Be7 {[%emt 0:0:5]} Rc6 {[%emt 0:0:11]} 76. Rf8+ {[%emt 0:0:4]} Ke6 {[%emt 0:0:2]} 77. Bb4 {[%emt 0:0:2]
} Nd6 {[%emt 0:0:16]} 78. Rg8 {[%emt 0:0:23]} Kf7 {[%emt 0:0:0]} 79. Rb8 {[%emt 0:0:42]} e4 {[%emt 0:0:6]} 80. fxe4 {[%emt 0:0:14]} Nxe4 {[%emt 0:0:4]} 81. Rb6 {[%emt 0:0:17]} Re6 {[%emt 0:0:7]} 82. Kf3 {[%emt 0:0:42]
} Nf6 {[%emt 0:0:9]} 83. Rb7+ {[%emt 0:0:2]} Ke8 {[%emt 0:0:0]} 84. Bc5 {[%emt 0:0:6]} Nd7 {[%emt 0:0:7]} 85. Bb4 {[%emt 0:0:30]} Kd8 {[%emt 0:0:18]} 86. Ra7 {[%emt 0:0:0]} Nb8 {[%emt 0:0:16]} 87. Rg7 {[%emt 0:0:11]
} Nd7 {[%emt 0:0:15]} 88. Rg8+ {[%emt 0:0:14]} Kc7 {[%emt 0:0:0]} 89. Bd2 {[%emt 0:0:11]} Ne5+ {[%emt 0:0:10]} 90. Kf4 {[%emt 0:0:46]} Nd3+ {[%emt 0:0:16]} 91. Kg5 {[%emt 0:0:31]} b4 {[%emt 0:0:9]} 0-1

[Event "FIDE World Rapid-ch Open 2018"]
[White "Sokolov, Andrei"]
[Black "Ovchinnikov, Vsevolod"]
[Site "St. Petersburg"]
[Round "6.88"]
[Annotator "ChessBase"]
[Result "1/2-1/2"]
[Date "2018.12.27"]
[WhiteElo "2532"]
[BlackElo "2329"]
[PlyCount "47"]
[TimeControl "900+10"]

1. g3 {[%emt 0:0:0]} Nf6 {[%emt 0:0:0]} 2. Bg2 {[%emt 0:0:0]} g6 {[%emt 0:0:0]
} 3. c4 {[%emt 0:0:0]} d5 {[%emt 0:0:6]} 4. cxd5 {[%emt 0:0:0]} Nxd5 {[%emt 0:0:1]} 5. Nc3 {[%emt 0:0:0]} Nb6 {[%emt 0:0:2]} 6. Nf3 {[%emt 0:0:3]} Bg7 {[%emt 0:0:2]} 7. 0-0 {[%emt 0:0:2]} Nc6 {[%emt 0:0:0]} 8. d3 {[%emt 0:0:17]} e5 {[%emt 0:0:27]} 9. Be3 {[%emt 0:0:42]} 0-0 {[%emt 0:0:8]
} 10. Rc1 {[%emt 0:0:1]} h6 {[%emt 0:0:20]} 11. Ne4 {[%emt 0:0:0]} Kh7 {[%emt 0:3:3]} 12. Nc5 {[%emt 0:0:40]} Nd5 {[%emt 0:2:28]} 13. Qb3 {[%emt 0:0:35]} Na5 {[%emt 0:3:8]} 14. Qxd5 {[%emt 0:0:8]} Qxd5 {[%emt 0:0:8]
} 15. Ng5+ {[%emt 0:0:0]} hxg5 {[%emt 0:0:2]} 16. Bxd5 {[%emt 0:0:1]
} Rb8 {[%emt 0:3:2]} 17. Ne4 {[%emt 0:0:44]} f6 {[%emt 0:0:0]} 18. Rxc7 {[%emt 0:0:23]} Bh3 {[%emt 0:0:5]} 19. Rfc1 {[%emt 0:2:43]} Rbd8 {[%emt 0:0:4]} 20. Bc5 {[%emt 0:0:43]} Kh6 {[%emt 0:0:40]} 21. Bxf8 {[%emt 0:0:27]
} Bxf8 {[%emt 0:0:1]} 22. Nxf6 {[%emt 0:0:45]} Bg7 {[%emt 0:0:0]} 23. Rxg7 {[%emt 0:0:7]} Kxg7 {[%emt 0:0:5]} 24. Rc7+ {[%emt 0:0:0]} 1/2-1/2